Cogmind - Beta 11 X8 --- EXPLORER MODE // 2021.10.26 @ 02:01:04 // Winter2019/RPGLIKE Player: jfk Result: Destroyed by VG-N7P(z) with Zionite Laser-S Performance ------------- Evolutions (3) 1500 Regions Visited (15) 3000 Robots Destroyed (207) 1035 Value Destroyed (8934) 8934 Prototype IDs (39) 780 Alien Tech Used (0) 0 Bonus (3101) 3101 TOTAL SCORE: 18350 Bonus ------- Pacifist 200 High Alert Combat Kills 925 Follower Combat Kills 288 Entered Garrisons 400 Used RIF Installer 1000 Aligned with FarCom 300 Friendly Fire -12 Cogmind --------- Core Integrity 0/1000 Matter 300/300 Energy 900/900 System Corruption 0% Temperature Warm (160) Movement Flying (50) Location -7/Deep Caves Parts ------- > --- POWER (2) -------- F-cell Engine F-cell Engine > --- PROPULSION (4) --- Flying Fortress v7 > --- UTILITY (9) ------ Advanced Visual Processing Unit Hacking Suite Relay Coupler [NC] (80) Relay Coupler [Swarmer] (124) Relay Coupler [Sentry] (56) Relay Coupler [Hunter] (4) Relay Coupler [Hunter] (28) Skeleton Box > --- WEAPON (3) ------- Gatling Laser Improved Spread Laser > --- INVENTORY (6) ---- Advanced Weight Redist. System Relay Coupler [Swarmer] (104) Gatling Laser Remote Datajack Spear GAL Module Peak State ------------ > --- POWER ------------ F-cell Engine F-cell Engine > --- PROPULSION ------- Flying Fortress v7 > --- UTILITY ---------- Advanced Visual Processing Unit Hacking Suite System Shield Relay Coupler [NC] Relay Coupler [Swarmer] Relay Coupler [Sentry] Relay Coupler [Hunter] Relay Coupler [Hunter] Skeleton Box > --- WEAPON ----------- Gatling Laser Gatling Laser Remote Datajack > --- INVENTORY -------- Advanced Weight Redist. System Relay Coupler [Swarmer] Gatling Laser Improved Spread Laser Rocket Launcher Spear [Rating: 91] Favorites ----------- Power F-cell Engine Engine F-cell Engine Power Core Nuclear Core Propulsion Flying Fortress v7 Hover Unit Hover Unit Flight Unit Flying Fortress v7 Utility Relay Coupler [Hunter] Device Skeleton Box Processor Advanced Visual Processing Unit Hackware Relay Coupler [Hunter] Protection Hardened Light Armor Plating Weapon Gatling Laser Energy Gun Gatling Laser Energy Cannon Heavy Particle Cannon Ballistic Gun AWS/Gauss Special Weapon Remote Datajack Build | -11 -10 -10 -9 -9 -9 -8 -8 -8 -8 -7 -7 -7 -7 -7 -7 ------- Run | Scr Mat Min Mat Min Exi Min Mat Gar Mat Fac Gar Fac Low Zio Dee Slots Evolved 14 | . . . . 1 9 . . 1 1 2 . . . . . Power 1 | . . . . . 1 . . . . . . . . . . Propulsion 3 | . . . . . 3 . . . . . . . . . . Utility 8 | . . . . 1 4 . . . 1 2 . . . . . Weapon 2 | . . . . . 1 . . 1 . . . . . . . Parts Attached 45 | . 1 . 3 1 3 1 4 5 1 18 1 6 . 1 . Power 7 | . . . . . . . 2 . . 3 . 2 . . . Engine 6 | . . . . . . . 1 . . 3 . 2 . . . Core 1 | . . . . . . . 1 . . . . . . . . Reactor . | . . . . . . . . . . . . . . . . Propulsion 3 | . . . 2 . 1 . . . . . . . . . . Treads . | . . . . . . . . . . . . . . . . Leg . | . . . . . . . . . . . . . . . . Wheel . | . . . . . . . . . . . . . . . . Hover 1 | . . . 1 . . . . . . . . . . . . Flight 2 | . . . 1 . 1 . . . . . . . . . . Utility 14 | . 1 . . 1 1 1 2 4 1 2 . 1 . . . Device 4 | . . . . 1 1 . 2 . . . . . . . . Storage . | . . . . . . . . . . . . . . . . Processor 2 | . 1 . . . . . . . . 1 . . . . . Hackware 7 | . . . . . . . . 4 1 1 . 1 . . . Protection 1 | . . . . . . 1 . . . . . . . . . Artifact . | . . . . . . . . . . . . . . . . Weapon 21 | . . . 1 . 1 . . 1 . 13 1 3 . 1 . Energy Gun 13 | . . . . . . . . . . 9 1 2 . 1 . Energy Cannon 3 | . . . 1 . . . . 1 . 1 . . . . . Ballistic Gun 3 | . . . . . 1 . . . . 2 . . . . . Ballistic Cannon . | . . . . . . . . . . . . . . . . Launcher . | . . . . . . . . . . . . . . . . Special Weapon 2 | . . . . . . . . . . 1 . 1 . . . Impact Weapon . | . . . . . . . . . . . . . . . . Slashing Weapon . | . . . . . . . . . . . . . . . . Piercing Weapon . | . . . . . . . . . . . . . . . . Special Melee Weapon . | . . . . . . . . . . . . . . . . Unidentified Prototypes 8 | . . . . 1 . . . . . 6 . 1 . . . Parts Lost 2 | . . . . . . . . . . 1 . . . . 1 Power . | . . . . . . . . . . . . . . . . Propulsion . | . . . . . . . . . . . . . . . . Utility 1 | . . . . . . . . . . 1 . . . . . Weapon 1 | . . . . . . . . . . . . . . . 1 Highest Loss Streak 1 | . . . . . . . . . . 1 . . . . 1 Average Slot Usage (%) 71 | . 21 25 53 49 27 23 48 63 74 78 77 77 . 77 77 Engine 8 | . . . . . . . 6 6 6 5 11 11 . 11 11 Core 1 | . . . . . . . 6 6 6 5 . . . . . Flight 4 | . . . 14 . 4 7 7 6 6 5 5 5 . 5 5 Device 5 | . . . . . 4 7 14 11 6 5 5 5 . 5 5 Processor 4 | . 21 25 25 6 . . . . . . 5 5 . 5 5 Hackware 27 | . . . . . . . . 12 30 30 33 33 . 33 33 Protection 1 | . . . . . . 2 7 6 6 5 . . . . . Energy Gun 9 | . . . . . . . . . . 12 11 11 . 14 16 Energy Cannon 1 | . . . 10 21 7 . . 4 6 1 . . . . . Ballistic Gun 1 | . . . . . 4 7 7 6 6 2 . . . . . Special Weapon 2 | . . . . . . . . . . . 5 4 . 2 . Naked Turns 18 | . 18 . . . . . . . . . . . . . . Heaviest Build 38 | . . . 6 6 12 17 31 37 35 37 37 37 37 38 38 Greatest Support 50 | 3 3 3 6 6 50 50 50 50 50 50 50 50 50 50 50 Greatest Overweight (x) 11 | . . . 1 . 1 . . . 11 . . . . . . Average Overweight (x) . | . . . . . . . . . . . . . . . . Largest Inventory Capacity 6 | . . . . 1 4 4 4 4 4 6 6 6 6 6 6 Average Capacity 5 | . . . . . 2 4 4 4 4 5 6 6 6 6 6 Most Carried 6 | . . . . 1 2 2 4 4 4 6 6 6 6 6 6 Average Carried 4 | . . . . . 1 2 2 3 4 5 5 5 6 5 6 Final Capacity 6 | . . . . 1 4 4 4 4 4 6 6 6 6 6 6 Final Carried 6 | . . . . 1 2 2 4 4 4 5 5 6 6 6 6 Class Distribution -------------------- 52% | Bothacker-Mutant 21% | Hacker-Mutant 17% | Bothacker-Gunner 6% | Hacker-Skirmisher Dominant Class ---------------- Hacker-Mutant | -10/Materials Hacker-Mutant | -10/Mines Hacker-Mutant | -9/Materials Hacker-Mutant | -9/Mines Hacker-Mutant | -9/Exiles Hacker-Mutant | -8/Mines Hacker-Mutant | -8/Materials Hacker-Skirmisher | -8/Garrison Hacker-Skirmisher | -8/Materials Bothacker-Gunner | -7/Factory Bothacker-Mutant | -7/Garrison Bothacker-Mutant | -7/Factory Bothacker-Mutant | -7/Lower Caves Bothacker-Gunner | -7/Zion Bothacker-Gunner | -7/Deep Caves Resources | -11 -10 -10 -9 -9 -9 -8 -8 -8 -8 -7 -7 -7 -7 -7 -7 ----------- Run | Scr Mat Min Mat Min Exi Min Mat Gar Mat Fac Gar Fac Low Zio Dee Matter Collected 869 | . . 192 31 10 . 40 40 50 10 266 20 200 . 10 . Remotely . | . . . . . . . . . . . . . . . . Salvage Created 7867 | . . . . 130 . . 532 522 765 1813 637 1530 . 1745 193 Parts 475 | . . . . 6 . . 31 35 40 83 23 113 . 137 7 Haulers Intercepted 5 | . . . . . . . . . . 4 . 1 . . . Recyclers Shooed 2 | . . . . . . . . . . . . 2 . . . Parts Field Recycled . | . . . . . . . . . . . . . . . . Retrieved Matter . | . . . . . . . . . . . . . . . . Parts Self-Destructed . | . . . . . . . . . . . . . . . . Prevented . | . . . . . . . . . . . . . . . . Kills | -11 -10 -10 -9 -9 -9 -8 -8 -8 -8 -7 -7 -7 -7 -7 -7 ------- Run | Scr Mat Min Mat Min Exi Min Mat Gar Mat Fac Gar Fac Low Zio Dee Combat Hostiles Destroyed 173 | . . . . 2 . . 8 20 11 37 20 54 . 14 7 Guns 150 | . . . . . . . 8 20 9 30 17 49 . 11 6 Cannons 8 | . . . . 2 . . . . 2 4 . . . . . AOE 1 | . . . . . . . . . . 1 . . . . . Classes Destroyed 24 | . . . . 2 . . 3 4 1 3 . 3 . 6 2 Worker 3 | . . . . . . . . . . . . 3 . . . Builder 3 | . . . . . . . 1 . 1 1 . . . . . Hauler 5 | . . . . . . . . . . 4 . 1 . . . Watcher 5 | . . . . . . . 3 . 2 . . . . . . Swarmer 21 | . . . . . . . . 9 . 7 2 3 . . . Cutter 11 | . . . . . . . . . . . . 11 . . . Grunt 60 | . . . . 1 . . 6 6 4 13 13 17 . . . Brawler 5 | . . . . 1 . . . 1 . 2 1 . . . . Duelist 6 | . . . . . . . . 1 1 3 . 1 . . . Protector 2 | . . . . . . . . 1 . . . 1 . . . Sentry 20 | . . . . . . . 2 1 5 4 4 4 . . . Demolisher 1 | . . . . . . . . 1 . . . . . . . Specialist 7 | . . . . . . . . . . 1 . 6 . . . Hunter 4 | . . . . . . . . . 1 1 . 2 . . . Programmer 13 | . . . . . . . . . . 6 . 7 . . . Heavy 2 | . . . . . . . . . . . . 2 . . . Zionite 60 | . . . . . . . . . . . . . . 60 . Z-Light 4 | . . . . . . . . . . . . . . . 4 Tinkerer 1 | . . . . . . . . . . . . . . 1 . Assembled 3 | . . . . . . . . . . . . . . . 3 Surgeon 1 | . . . . . . . . . . . . . . 1 . Thug 2 | . . . . . . . . . . . . . . 2 . Butcher 2 | . . . . . . . . . . . . . . 2 . Marauder 2 | . . . . . . . . . . . . . . 2 . Fireman 2 | . . . . . . . . . . . . . . 2 . Mutant 5 | . . . . . . . . . . . . . . 5 . Best Kill Streak 21 | . . . . 2 . . 9 8 8 6 9 8 . 21 3 Combat Bots Only 9 | . . . . 2 . . 7 8 7 6 9 8 . 4 3 Max Kills in Single Turn 3 | . . . . 1 . . 1 1 1 2 1 2 . 3 1 Gunslinging 1 | . . . . . . . . . . . . . . 1 . Exploded 1 | . . . . . . . . . . 1 . . . . . Melee . | . . . . . . . . . . . . . . . . Uniques/NPCs Destroyed 1 | . . . . . . . . . . . . . . 1 . Imprinter (-7/Zion) Combat | -11 -10 -10 -9 -9 -9 -8 -8 -8 -8 -7 -7 -7 -7 -7 -7 -------- Run | Scr Mat Min Mat Min Exi Min Mat Gar Mat Fac Gar Fac Low Zio Dee Damage Taken 6074 | . 13 84 70 13 . . 102 206 113 1936 434 1502 . 1106 495 Core 4717 | . 12 83 69 11 . . 64 134 91 1443 324 1202 . 880 404 Absorbed by Shields 41 | . . . . . . . . . . . 41 . . . . Redirected to Core 3523 | . 2 4 2 4 . . 53 93 60 1083 272 946 . 690 314 Core Remaining (%) 92 | 100 . 84 . . . 87 . . 99 . . . . . . Volleys Fired 364 | . . . . 10 . . . 10 6 78 36 121 . 91 12 Largest 3 | . . . . 1 . . . 1 1 3 2 2 . 3 3 Hottest 235 | . . . . 75 . . . 75 75 235 160 160 . 235 235 Shots Fired 897 | . . . . 10 . . 41 59 41 196 69 212 . 234 35 Gun 815 | . . . . . . . 41 49 35 170 67 184 . 234 35 Cannon 49 | . . . . 10 . . . 10 6 23 . . . . . Launcher . | . . . . . . . . . . . . . . . . Special 33 | . . . . . . . . . . 3 2 28 . . . Kinetic 162 | . . . . . . . 41 49 35 37 . . . . . Thermal 702 | . . . . 10 . . . 10 6 156 67 184 . 234 35 Explosive . | . . . . . . . . . . . . . . . . Electromagnetic . | . . . . . . . . . . . . . . . . Robot Hit Streak 117 | . . . . 2 . . 22 44 47 100 117 53 . 67 25 Robot Miss Streak 5 | . . . . 1 . . 1 1 1 2 1 3 . 5 3 Penetration Max . | . . . . . . . . . . . . . . . . Secondary Targets 21 | . . . . . . . . . . 1 . 2 . 17 1 Max Gunslinging Chain 2 | . . . . . . . . . . 1 . 1 . 2 1 Autonomous 144 | . . . . . . . 41 49 35 19 . . . . . Shots Hit Robots 818 | . . . . 4 . . 40 52 36 185 62 201 . 205 33 Core Hits 647 | . . 1 . 2 . . 15 25 19 153 59 158 . 181 34 Critical Kills 1 | . . . . . . . 1 . . . . . . . . Critical Parts Destroyed 2 | . . . . . . . . . 2 . . . . . . Critical Strikes 3 | . . . . . . . 1 . 2 . . . . . . Destroy 3 | . . . . . . . 1 . 2 . . . . . . Melee Attacks . | . . . . . . . . . . . . . . . . Impact . | . . . . . . . . . . . . . . . . Slashing . | . . . . . . . . . . . . . . . . Piercing . | . . . . . . . . . . . . . . . . Sneak Attacks . | . . . . . . . . . . . . . . . . Combat Hostiles . | . . . . . . . . . . . . . . . . Follow-up Attacks . | . . . . . . . . . . . . . . . . Damage Inflicted 20154 | . 6 13 . 125 . . 1226 1473 952 4929 1703 4629 . 4287 811 Guns 19272 | . . . . . . . 1226 1348 852 4416 1703 4629 . 4287 811 Cannons 825 | . . . . 125 . . . 125 100 475 . . . . . Explosions 38 | . . . . . . . . . . 38 . . . . . Melee . | . . . . . . . . . . . . . . . . Ramming 19 | . 6 13 . . . . . . . . . . . . . Kinetic 4187 | . . . . . . . 1226 1348 852 761 . . . . . Thermal 15948 | . . . . 125 . . . 125 100 4168 1703 4629 . 4287 811 Explosive . | . . . . . . . . . . . . . . . . Electromagnetic . | . . . . . . . . . . . . . . . . Impact . | . . . . . . . . . . . . . . . . Slashing . | . . . . . . . . . . . . . . . . Piercing . | . . . . . . . . . . . . . . . . Highest Corruption 1 | . . . . . . . . . . 1 1 1 1 1 . Average Corruption 1 | . . . . . . . . . . 1 1 1 1 1 . Corruption Purged . | . . . . . . . . . . . . . . . . Effects 27 | . . . . . . . . . . 1 2 24 . . . Message Errors 15 | . . . . . . . . . . 1 1 13 . . . Energy Discharges 5 | . . . . . . . . . . . . 5 . . . Data Loss (minor) 7 | . . . . . . . . . . . 1 6 . . . Overload Shots . | . . . . . . . . . . . . . . . . Overflow Damage . | . . . . . . . . . . . . . . . . Projectiles . | . . . . . . . . . . . . . . . . Explosions . | . . . . . . . . . . . . . . . . Melee . | . . . . . . . . . . . . . . . . Knockbacks . | . . . . . . . . . . . . . . . . Impact . | . . . . . . . . . . . . . . . . Kinetic . | . . . . . . . . . . . . . . . . Secondary . | . . . . . . . . . . . . . . . . Self-Inflicted Damage 184 | . 3 5 . . . . . . . 176 . . . . . Shots 3 | . . . . . . . . . . 3 . . . . . Rammed 4 | . 1 3 . . . . . . . . . . . . . Targets Rammed 4 | . 1 3 . . . . . . . . . . . . . Kicked . | . . . . . . . . . . . . . . . . Crushed . | . . . . . . . . . . . . . . . . Highest Temperature 250 | . . . . 111 . . 36 14 23 150 2 16 . 250 151 Average Temperature 47 | . . . . 42 . . 18 8 13 46 1 3 . 56 47 Received Heat Transfer 2344 | . 9 . . 12 . . 81 72 99 324 262 462 . 780 243 Effects 1 | . . . . . . . . . . . . . . 1 . Energy Bleed 1 | . . . . . . . . . . . . . . 1 . Siege Activations . | . . . . . . . . . . . . . . . . Robots Corrupted . | . . . . . . . . . . . . . . . . Combat Hostiles . | . . . . . . . . . . . . . . . . Parts Fried 1 | . . . . . . . . . . . . 1 . . . Impact Corruptions . | . . . . . . . . . . . . . . . . Robots Melted 14 | . . . . . . . . . . 2 3 5 . 3 1 Combat Hostiles 14 | . . . . . . . . . . 2 3 5 . 3 1 Parts Melted 67 | . . . . . . . 1 . . 11 9 25 . 14 7 Heat Transferred 31422 | . . . . 185 . . . 158 148 7062 3850 9724 . 8825 1470 Parts Sabotaged . | . . . . . . . . . . . . . . . . Parts Stolen . | . . . . . . . . . . . . . . . . Parts Stripped . | . . . . . . . . . . . . . . . . Power Chain Reactions . | . . . . . . . . . . . . . . . . Missiles Intercepted . | . . . . . . . . . . . . . . . . Alert | -11 -10 -10 -9 -9 -9 -8 -8 -8 -8 -7 -7 -7 -7 -7 -7 ------- Run | Scr Mat Min Mat Min Exi Min Mat Gar Mat Fac Gar Fac Low Zio Dee Peak Influence 841 | . 96 71 214 110 . . 333 775 676 769 841 520 . . . Initial 371 | . . 26 19 58 . . . 164 276 222 371 327 . . . Average 257 | . 42 53 125 66 . . 100 489 416 516 667 148 . . . Maximum Alert Level 3 | . . . 1 . . . 1 3 2 3 3 2 . . . Low Security (%) 49 | 100 100 100 60 100 . 100 88 14 . . . 66 . . . Level 1 21 | . . . 39 . . . 11 17 59 13 8 26 . . . Level 2 25 | . . . . . . . . 56 40 81 42 6 . . . Level 3 4 | . . . . . . . . 12 . 4 49 . . . . Level 4 . | . . . . . . . . . . . . . . . . Level 5 . | . . . . . . . . . . . . . . . . High Security . | . . . . . . . . . . . . . . . . Max Security . | . . . . . . . . . . . . . . . . Squads Dispatched 33 | . . . . . . . 3 . . 8 . 22 . . . Investigation 6 | . . . . . . . . . . 2 . 4 . . . Extermination 11 | . . . . . . . . . . 3 . 8 . . . Reinforcement 12 | . . . . . . . 2 . . 1 . 9 . . . Assault . | . . . . . . . . . . . . . . . . Garrison 4 | . . . . . . . 1 . . 2 . 1 . . . Intercept . | . . . . . . . . . . . . . . . . Construction Impeded 1 | . . . . . . . . . . . . 1 . . . Haulers Reinforced . | . . . . . . . . . . . . . . . . Active Scanning Responses . | . . . . . . . . . . . . . . . . Cargo Convoy Interrupts 2 | . . . . . . . . . . 1 . 1 . . . Stealth | -11 -10 -10 -9 -9 -9 -8 -8 -8 -8 -7 -7 -7 -7 -7 -7 --------- Run | Scr Mat Min Mat Min Exi Min Mat Gar Mat Fac Gar Fac Low Zio Dee Distress Signals 7 | . . . 1 . . . 1 . . 1 . 4 . . . Communications Jammed . | . . . . . . . . . . . . . . . . Distress Signals . | . . . . . . . . . . . . . . . . Times Spotted 355 | . 5 9 9 2 . . 14 21 11 66 24 92 . 90 12 Peak Tracking Total 12 | . 5 11 7 2 . . 3 9 3 12 10 7 . 12 6 Tactical Retreats 21 | . 1 2 1 . . . . . . 6 3 3 . 5 . Traps | -11 -10 -10 -9 -9 -9 -8 -8 -8 -8 -7 -7 -7 -7 -7 -7 ------- Run | Scr Mat Min Mat Min Exi Min Mat Gar Mat Fac Gar Fac Low Zio Dee Traps Triggered 15 | . . . . . . . . 5 1 . 7 2 . . . Indirectly . | . . . . . . . . . . . . . . . . Trap Hack Attempts . | . . . . . . . . . . . . . . . . Triggered . | . . . . . . . . . . . . . . . . Disarmed . | . . . . . . . . . . . . . . . . Reprogrammed 6 | . . . . . . . . . . . . 6 . . . Reused 5 | . . . . . . . . . . . . 5 . . . Traps Extracted . | . . . . . . . . . . . . . . . . Installed . | . . . . . . . . . . . . . . . . Triggered 8 | . . . . . . . . . . . . 8 . . . Machines | -11 -10 -10 -9 -9 -9 -8 -8 -8 -8 -7 -7 -7 -7 -7 -7 ---------- Run | Scr Mat Min Mat Min Exi Min Mat Gar Mat Fac Gar Fac Low Zio Dee Machines Disabled 20 | . . . . . . . 1 5 . 9 . 5 . . . Max in Single Turn 7 | . . . . . . . 1 1 . 7 . . . . . Garrison Relay 4 | . . . . . . . . 4 . . . . . . . Machines Sabotaged . | . . . . . . . . . . . . . . . . Garrisons Compromised 1 | . . . . . . . . . . . . 1 . . . Overloaded Fab Kills . | . . . . . . . . . . . . . . . . Hacking | -11 -10 -10 -9 -9 -9 -8 -8 -8 -8 -7 -7 -7 -7 -7 -7 --------- Run | Scr Mat Min Mat Min Exi Min Mat Gar Mat Fac Gar Fac Low Zio Dee Machines Accessed 46 | . 1 . 1 1 1 . 1 . 2 15 . 24 . . . Terminals 33 | . 1 . 1 . . . . . 2 10 . 19 . . . Fabricators 8 | . . . . . . . . . . 3 . 5 . . . Repair Stations . | . . . . . . . . . . . . . . . . Recycling Units . | . . . . . . . . . . . . . . . . Scanalyzers . | . . . . . . . . . . . . . . . . Garrison Access 3 | . . . . . . . 1 . . 2 . . . . . Total Hacks 101 | . 3 . 3 1 1 . 1 . 2 29 . 61 . . . Successful 69 | . 2 . 2 1 1 . 1 . 2 18 . 42 . . . Failed 32 | . 1 . 1 . . . . . . 11 . 19 . . . Catastrophic 4 | . 1 . . . . . . . . 1 . 2 . . . Database Lockouts . | . . . . . . . . . . . . . . . . Manual 62 | . 2 . 3 . 1 . . . . 16 . 40 . . . Terminals 76 | . 3 . 3 . . . . . 2 23 . 45 . . . Fabricators 20 | . . . . . . . . . . 4 . 16 . . . Repair Stations . | . . . . . . . . . . . . . . . . Recycling Units . | . . . . . . . . . . . . . . . . Scanalyzers . | . . . . . . . . . . . . . . . . Garrison Access 3 | . . . . . . . 1 . . 2 . . . . . Terminal Hacks 39 | . 2 . 2 1 1 . . . 2 7 . 24 . . . Record 8 | . 1 . . . . . . . 1 1 . 5 . . . Robot Schematic 1 | . . . . . . . . . . . . 1 . . . Robot Analysis 2 | . . . . . . . . . . . . 2 . . . Prototype ID Bank 3 | . . . . . . . . . . 2 . 1 . . . Open Door 1 | . . . . 1 . . . . . . . . . . . Open DSF 7 | . . . . . . . . . . 1 . 6 . . . Level Access Points 1 | . . . . . . . . . 1 . . . . . . Branch Access Points 3 | . 1 . 2 . . . . . . . . . . . . Terminal Index 2 | . . . . . . . . . . 1 . 1 . . . Fabricator Index 1 | . . . . . . . . . . . . 1 . . . Scanalyzer Index 1 | . . . . . . . . . . . . 1 . . . Unreport Threat 3 | . . . . . . . . . . . . 3 . . . Reprogram Traps 1 | . . . . . . . . . . . . 1 . . . Maintenance Status 1 | . . . . . . . . . . . . 1 . . . Transport Status 1 | . . . . . . . . . . . . 1 . . . Hauler Manifests 1 | . . . . . . . . . . 1 . . . . . Registered Prototypes 1 | . . . . . . . . . . 1 . . . . . EX-Prototype ID Bank 1 | . . . . . 1 . . . . . . . . . . Fabricator Hacks 8 | . . . . . . . . . . 2 . 6 . . . Network Status 3 | . . . . . . . . . . 2 . 1 . . . Load Schematic 3 | . . . . . . . . . . . . 3 . . . Build 2 | . . . . . . . . . . . . 2 . . . Repair Station Hacks . | . . . . . . . . . . . . . . . . Recycling Unit Hacks . | . . . . . . . . . . . . . . . . Scanalyzer . | . . . . . . . . . . . . . . . . Garrison Access Hacks 2 | . . . . . . . 1 . . 1 . . . . . Unlock Access 2 | . . . . . . . 1 . . 1 . . . . . Unauthorized Hacks 20 | . . . . . . . . . . 8 . 12 . . . Terminals 16 | . . . . . . . . . . 7 . 9 . . . Track 1 | . . . . . . . . . . 1 . . . . . Assimilate 1 | . . . . . . . . . . . . 1 . . . Botnet 14 | . . . . . . . . . . 6 . 8 . . . Fabricators 3 | . . . . . . . . . . . . 3 . . . Prioritize 2 | . . . . . . . . . . . . 2 . . . Haulers 1 | . . . . . . . . . . . . 1 . . . Repair Stations . | . . . . . . . . . . . . . . . . Recycling Units . | . . . . . . . . . . . . . . . . Scanalyzers . | . . . . . . . . . . . . . . . . Garrison Access 1 | . . . . . . . . . . 1 . . . . . Eject 1 | . . . . . . . . . . 1 . . . . . Data Cores Recovered . | . . . . . . . . . . . . . . . . Used . | . . . . . . . . . . . . . . . . Hacking Detections 26 | . 1 . . . . . . . . 9 . 16 . . . Full Trace Events 3 | . . . . . . . . . . 1 . 2 . . . Feedback Events . | . . . . . . . . . . . . . . . . Feedback Blocked . | . . . . . . . . . . . . . . . . Robot Schematics Acquired 4 | . . . . . . . . . . . . 1 . 3 . Robots Built 6 | . . . . . . . . . . . . 6 . . . Authchips . | . . . . . . . . . . . . . . . . Time 116 | . . . . . . . . . . . . 116 . . . Total Robot Build Rating 18 | . . . . . . . . . . . . 18 . . . Part Schematics Acquired 15 | . . . . . . . . . . . . . . 15 . Parts Built . | . . . . . . . . . . . . . . . . Authchips . | . . . . . . . . . . . . . . . . Time . | . . . . . . . . . . . . . . . . Total Part Build Rating . | . . . . . . . . . . . . . . . . Parts Repaired . | . . . . . . . . . . . . . . . . Time . | . . . . . . . . . . . . . . . . Parts Recycled . | . . . . . . . . . . . . . . . . Recycled Matter . | . . . . . . . . . . . . . . . . Retrieved Matter . | . . . . . . . . . . . . . . . . Retrieved Components . | . . . . . . . . . . . . . . . . Parts Scanalyzed . | . . . . . . . . . . . . . . . . Part Schematics Acquired . | . . . . . . . . . . . . . . . . Parts Damaged . | . . . . . . . . . . . . . . . . Bothacking | -11 -10 -10 -9 -9 -9 -8 -8 -8 -8 -7 -7 -7 -7 -7 -7 ------------ Run | Scr Mat Min Mat Min Exi Min Mat Gar Mat Fac Gar Fac Low Zio Dee Used RIF Installer 2 | . . . . . . . . 1 . . 1 . . . . Structural Interface 1 | . . . . . . . . . . . 1 . . . . Robots Hacked 18 | . . . . . . . . . . 2 2 14 . . . Non-combat 6 | . . . . . . . . . . . . 6 . . . Combat 12 | . . . . . . . . . . 2 2 8 . . . Robot Hacks Applied 28 | . . . . . . . . . . 2 2 24 . . . parse_system 6 | . . . . . . . . . . . . 6 . . . no_distress 5 | . . . . . . . . . . . . 5 . . . deconstruct_machine 2 | . . . . . . . . . . . . 2 . . . find_fabricator 1 | . . . . . . . . . . . . 1 . . . find_dsf 3 | . . . . . . . . . . . . 3 . . . disrupt_area 1 | . . . . . . . . . . . 1 . . . . wipe_record 4 | . . . . . . . . . . . . 4 . . . disable_weapons 1 | . . . . . . . . . . . . 1 . . . overwrite_iff 5 | . . . . . . . . . . 2 1 2 . . . Relay Couplers Released 8 | . . . . . . . . 7 . 1 . . . . . Ejected 1 | . . . . . . . . . . 1 . . . . . Machine Destruction 7 | . . . . . . . . 7 . . . . . . . Attached 5 | . . . . . . . . 4 . 1 . . . . . Robots Rewired . | . . . . . . . . . . . . . . . . Allies Hacked . | . . . . . . . . . . . . . . . . Hacks Repelled . | . . . . . . . . . . . . . . . . Allies | -11 -10 -10 -9 -9 -9 -8 -8 -8 -8 -7 -7 -7 -7 -7 -7 -------- Run | Scr Mat Min Mat Min Exi Min Mat Gar Mat Fac Gar Fac Low Zio Dee Total Allies 18 | . . 3 . . . . . . . 2 1 12 . . . Largest Group 7 | . . 3 3 3 3 3 3 3 2 2 . 7 3 3 . Highest-Rated Group 189 | . . 40 40 40 40 40 40 40 24 42 . 189 66 66 . Highest-Rated Ally 31 | . . 16 16 16 16 16 16 16 16 21 . 31 22 22 . Total Orders . | . . . . . . . . . . . . . . . . Ally Attacks 142 | . . 4 15 1 . . 12 7 3 5 1 74 . 20 . Total Damage 2322 | . . 39 110 . . . 124 29 36 171 57 1251 . 505 . Kills 30 | . . 1 6 . . . 1 . . . . 16 . 6 . Allies Corrupted . | . . . . . . . . . . . . . . . . Allies Melted . | . . . . . . . . . . . . . . . . Intel | -11 -10 -10 -9 -9 -9 -8 -8 -8 -8 -7 -7 -7 -7 -7 -7 ------- Run | Scr Mat Min Mat Min Exi Min Mat Gar Mat Fac Gar Fac Low Zio Dee Robot Analysis Total 2 | . . . . . . . . . . . . 2 . . . Derelict Logs Recovered 1 | . . . . 1 . . . . . . . . . . . Drone Launches . | . . . . . . . . . . . . . . . . Drone Recoveries . | . . . . . . . . . . . . . . . . Exploration | -11 -10 -10 -9 -9 -9 -8 -8 -8 -8 -7 -7 -7 -7 -7 -7 ------------- Run | Scr Mat Min Mat Min Exi Min Mat Gar Mat Fac Gar Fac Low Zio Dee Turns Passed 9722 | 10 88 238 71 362 174 274 134 434 358 1574 446 4677 8 745 129 Spaces Moved 10416 | 19 171 431 106 501 219 449 221 615 519 2505 427 3398 15 664 156 Core 679 | 19 171 431 43 . 1 . . . 14 . . . . . . Treads . | . . . . . . . . . . . . . . . . Legs . | . . . . . . . . . . . . . . . . Wheels . | . . . . . . . . . . . . . . . . Hover 626 | . . . 15 501 110 . . . . . . . . . . Flight 9111 | . . . 48 . 108 449 221 615 505 2505 427 3398 15 664 156 Fastest Speed 40 | 50 50 50 40 60 50 50 50 50 50 50 50 50 50 50 50 Average Speed 51 | 50 50 50 57 60 55 50 50 50 64 50 50 50 50 50 50 Slowest Speed 600 | 50 50 50 120 60 100 50 50 50 600 50 50 50 50 50 50 Overloaded Moves . | . . . . . . . . . . . . . . . . Propulsion Burnouts . | . . . . . . . . . . . . . . . . Robots Hopped 74 | . . . . . . 3 4 . 2 9 . 52 . 4 . Cave-ins Triggered . | . . . . . . . . . . . . . . . . Exploration Rate (%) 53 | 3 41 92 14 91 60 91 20 74 58 55 53 78 3 82 45 Regions Visited 15 Branch Regions 7 Pre-discovered Areas . | . . . . . . . . . . . . . . . . Known Exits Taken 12 | 1 1 1 1 1 1 1 1 . 1 1 . 1 . 1 . Unknown Exits Taken 1 | . . . . . . . . . . . . . 1 . . Scrap Searched 5 | . . . . . . 2 . . . . . . 1 2 . Spaces Dug 3 | . . . . 3 . . . . . . . . . . . Terrain Destroyed 128 | . . . . 5 . . 26 . 18 79 . . . . . Melee . | . . . . . . . . . . . . . . . . Projectile 51 | . . . . 5 . . 26 . 18 2 . . . . . AOE 77 | . . . . . . . . . . 77 . . . . . Terrain Rammed . | . . . . . . . . . . . . . . . . Walls Destroyed . | . . . . . . . . . . . . . . . . Machines Disabled . | . . . . . . . . . . . . . . . . Actions | -11 -10 -10 -9 -9 -9 -8 -8 -8 -8 -7 -7 -7 -7 -7 -7 --------- Run | Scr Mat Min Mat Min Exi Min Mat Gar Mat Fac Gar Fac Low Zio Dee Total 13915 | 18 172 452 114 552 270 494 237 731 531 2647 577 6088 14 841 177 Wait 2869 | . . 19 . 38 46 48 15 51 1 1 35 2546 . 69 . Move 10253 | 18 170 430 105 500 218 442 212 613 514 2487 425 3294 14 655 156 Hop 73 | . . . . . . 3 4 . 2 9 . 51 . 4 . Pick Up 17 | . . . . 1 1 . 2 4 . 6 1 1 . 1 . Fast Attach 36 | . 1 . 3 1 3 1 4 3 1 15 . 4 . . . Attach 5 | . . . . . . . . 2 . 2 . 1 . . . Detach 3 | . . . . 1 . . . 1 . . . 1 . . . Swap 4 | . . . . . . . . . . 1 1 1 . 1 . Drop 30 | . . . 1 1 2 . . 4 . 17 2 2 . 1 . Fire 364 | . . . . 10 . . . 10 6 78 36 121 . 91 12 Melee . | . . . . . . . . . . . . . . . . Ram 4 | . 1 3 . . . . . . . . . . . . . Kick . | . . . . . . . . . . . . . . . . Crush . | . . . . . . . . . . . . . . . . Escape Stasis 71 | . . . . . . . . 26 . . 39 6 . . . Rewire . | . . . . . . . . . . . . . . . . Trap . | . . . . . . . . . . . . . . . . Miscellaneous 186 | . . . 5 . . . . 17 7 31 38 60 . 19 9 Route ------- -11/Scrapyard -10/Materials -10/Mines (discovered 2 exits: *Mat x2) -9/Materials (discovered 4 exits: *Min x2 / Sto x2) -9/Mines (discovered 4 exits: *Mat x2 / *Exi / [*Zio]) -9/Exiles -8/Mines (discovered 2 exits: *Mat x2) -8/Materials -8/Garrison (discovered 3 exits: *Mat x3) -8/Materials (discovered 3 exits: *Fac x3) -7/Factory (discovered 6 exits: *Fac x3 / *Low x2 / Gar) -7/Garrison (discovered 2 exits: *Fac x2) -7/Factory (discovered 5 exits: *Fac x3 / *Low x2) -7/Lower Caves -7/Zion -7/Deep Caves History --------- Turn | Location | Event 2 | -11/Scrapyard | Identified exit to Materials 2 | -11/Scrapyard | Discovered exit to Materials (range 16) 11 | -11/Scrapyard | Entered Materials 60 | -10/Materials | Identified exit to Mines 99 | -10/Materials | Entered Mines 102 | -10/Mines | Assisted by bots powering up and referring to "LRC-V3" 153 | -10/Mines | Assembled infested the area 280 | -10/Mines | Identified exit to Materials 280 | -10/Mines | Discovered exit to Materials (range 7) 311 | -10/Mines | Discovered exit to Materials (range 15) 316 | -10/Mines | Build established: Hacker-Mutant 337 | -10/Mines | Entered Materials 337 | -9/Materials | Accompanied by 3 allies 339 | -9/Materials | Reached level 2 339 | -9/Materials | Reached level 3 341 | -9/Materials | Identified exit to Mines 341 | -9/Materials | Identified exit to Storage 370 | -9/Materials | Reached level 4 408 | -9/Materials | Entered Mines 408 | -9/Mines | Accompanied by 3 allies 426 | -9/Mines | Received a Rocket Launcher from a helpful Derelict 440 | -9/Mines | Met a Derelict bent on vengeance 474 | -9/Mines | Found a hidden stash of uninstalled traps 495 | -9/Mines | Learned Materials terminal intel 504 | -9/Mines | Found the Drone Emporium 507 | -9/Mines | Upgraded with Utility slot (x1) 507 | -9/Mines | Found Prototype Device 507 | -9/Mines | Identified Decoy Drone Bay 571 | -9/Mines | Identified exit to Materials 571 | -9/Mines | Discovered exit to Materials (range 7) 593 | -9/Mines | A Derelict revealed a hidden shortcut to a safe place 598 | -9/Mines | Discovered exit to Materials (range 12) 739 | -9/Mines | Deemed a non-threat by the Exiles lab entrance 739 | -9/Mines | Identified exit to Exiles 739 | -9/Mines | Discovered exit to Exiles (range 5) 770 | -9/Mines | Entered Exiles 770 | -9/Exiles | Accompanied by 3 allies 772 | -9/Exiles | Reached level 5 785 | -9/Exiles | Met 8R-AWN 796 | -9/Exiles | Met EX-HEX 812 | -9/Exiles | Met EX-BIN 819 | -9/Exiles | Aligned with FarCom system 820 | -9/Exiles | Given EX-Vault access code 834 | -9/Exiles | Opened EX-Vault 837 | -9/Exiles | Upgraded with Propulsion slot (x3) 838 | -9/Exiles | Found Flying Fortress v7 841 | -9/Exiles | Found Skeleton Box 845 | -9/Exiles | Upgraded with Power slot (x1) 845 | -9/Exiles | Upgraded with Utility slot (x4) 845 | -9/Exiles | Upgraded with Weapon slot (x1) 846 | -9/Exiles | Found AWS/Gauss 861 | -9/Exiles | Warned to stay clear of 0b10 Research branches 875 | -9/Exiles | Met EX-DEC 892 | -9/Exiles | Identified exit to Mines 892 | -9/Exiles | Discovered exit to Mines (range 14) 944 | -9/Exiles | Stole three prototypes: Flying Fortress v7, Skeleton Box, AWS/Gauss 944 | -9/Exiles | Entered Mines 944 | -8/Mines | Accompanied by 3 allies 969 | -8/Mines | Discovered exit to Materials (range 9) 1097 | -8/Mines | Discovered exit to Materials (range 9) 1218 | -8/Mines | Entered Materials 1218 | -8/Materials | Accompanied by 3 allies 1219 | -8/Materials | Loaded intel: 12 terminal locations 1220 | -8/Materials | Reached level 6 1220 | -8/Materials | Reached level 7 1326 | -8/Materials | Garrison activated, responded to threat 1339 | -8/Materials | Reached level 8 1345 | -8/Materials | Identified exit to Garrison 1352 | -8/Materials | Entered Garrison 1352 | -8/Garrison | Accompanied by 3 allies 1364 | -8/Garrison | Destroyed 7 combat bots 1409 | -8/Garrison | Triggered checkpoint 1420 | -8/Garrison | Reached level 9 1444 | -8/Garrison | Identified exit to Materials 1444 | -8/Garrison | Discovered exit to Materials (range 12) 1446 | -8/Garrison | Destroyed 8 combat bots 1470 | -8/Garrison | Triggered checkpoint 1478 | -8/Garrison | Discovered exit to Materials (range 10) 1487 | -8/Garrison | Installed Relay Interface Framework 1493 | -8/Garrison | Upgraded with Weapon slot (x1) 1512 | -8/Garrison | Triggered checkpoint 1515 | -8/Garrison | Garrison Relay disabled 1554 | -8/Garrison | Triggered checkpoint 1574 | -8/Garrison | Triggered checkpoint 1580 | -8/Garrison | Reached level 10 1585 | -8/Garrison | Garrison Relay disabled 1608 | -8/Garrison | Discovered exit to Materials (range 14) 1658 | -8/Garrison | Triggered checkpoint 1669 | -8/Garrison | Garrison Relay disabled 1722 | -8/Garrison | Triggered checkpoint 1736 | -8/Garrison | Garrison Relay disabled 1786 | -8/Garrison | Entered Materials 1786 | -8/Materials | Accompanied by 2 allies 1795 | -8/Materials | Identified exit to Factory 1807 | -8/Materials | Build established: Hacker-Skirmisher 1820 | -8/Materials | Upgraded with Utility slot (x1) 1998 | -8/Materials | Reached level 11 2116 | -8/Materials | Destroyed 7 combat bots 2144 | -8/Materials | Entered Factory 2146 | -7/Factory | FarCom data flow suspended 2146 | -7/Factory | Reached level 12 2209 | -7/Factory | Reached level 13 2310 | -7/Factory | Identified exit to Factory 2310 | -7/Factory | Discovered exit to Factory (range 3) 2621 | -7/Factory | Reached level 14 2723 | -7/Factory | Build established: Bothacker-Gunner 2820 | -7/Factory | Identified exit to Lower Caves 2820 | -7/Factory | Discovered exit to Lower Caves (range 5) 2850 | -7/Factory | Discovered exit to Factory (range 11) 2943 | -7/Factory | Discovered exit to Factory (range 16) 3129 | -7/Factory | Upgraded with Utility slot (x1) 3173 | -7/Factory | Discovered exit to Lower Caves (range 6) 3255 | -7/Factory | Reached level 15 3408 | -7/Factory | Upgraded with Utility slot (x1) 3523 | -7/Factory | Garrison activated, responded to threat 3533 | -7/Factory | Cargo convoy interrupted 3550 | -7/Factory | Core integrity fell below 50% 3598 | -7/Factory | Core integrity fell below 20% 3716 | -7/Factory | Identified exit to Garrison 3718 | -7/Factory | Entered Garrison 3752 | -7/Garrison | Triggered checkpoint 3752 | -7/Garrison | Triggered checkpoint 3755 | -7/Garrison | Triggered checkpoint 3828 | -7/Garrison | Reached level 16 3842 | -7/Garrison | Build established: Bothacker-Mutant 3890 | -7/Garrison | Triggered checkpoint 3980 | -7/Garrison | Destroyed 9 combat bots 4004 | -7/Garrison | Identified exit to Factory 4004 | -7/Garrison | Discovered exit to Factory (range 19) 4111 | -7/Garrison | Discovered exit to Factory (range 11) 4121 | -7/Garrison | Expanded RIF knowledge: Structural Interface 4134 | -7/Garrison | Triggered checkpoint 4164 | -7/Garrison | Entered Factory 4172 | -7/Factory | Discovered exit to Lower Caves (range 12) 4636 | -7/Factory | Discovered exit to Factory (range 13) 5435 | -7/Factory | Discovered exit to Lower Caves (range 8) 5470 | -7/Factory | Cargo convoy interrupted 5495 | -7/Factory | Garrison activated, responded to threat 5565 | -7/Factory | Fabricated C-17 Slicer (x3) 5591 | -7/Factory | Reached level 17 6326 | -7/Factory | Discovered exit to Factory (range 9) 6398 | -7/Factory | Destroyed 8 combat bots 6451 | -7/Factory | Discovered exit to Factory (range 15) 6511 | -7/Factory | Build established: Hacker-Mutant 6750 | -7/Factory | Destroyed 7 combat bots 7019 | -7/Factory | Build established: Bothacker-Mutant 8370 | -7/Factory | Fabricated C-17 Slicer (x3) 8841 | -7/Factory | Entered Lower Caves 8841 | -7/Lower Caves | Accompanied by 3 allies 8842 | -7/Lower Caves | A Derelict revealed a hidden shortcut to a safe place 8849 | -7/Lower Caves | Entered Zion 8849 | -7/Zion | Accompanied by 3 allies 8851 | -7/Zion | Reached level 18 8920 | -7/Zion | System corruption cleaned by Quarantine Array 8922 | -7/Zion | RIF detected upon attempting to enter Zion 8922 | -7/Zion | Attacked by Zionites 8922 | -7/Zion | Spotted S3-APR(B) 8922 | -7/Zion | Spotted TO-G8T(B) 8934 | -7/Zion | Destroyed S3-APR(B) 8940 | -7/Zion | Destroyed TO-G8T(B) 8979 | -7/Zion | Found GAL Module 9314 | -7/Zion | Remotely autohacked Sealed Blast Doors 9341 | -7/Zion | Remotely autohacked Sealed Blast Doors 9341 | -7/Zion | Remotely autohacked Sealed Blast Doors 9341 | -7/Zion | Remotely autohacked Sealed Blast Doors 9365 | -7/Zion | Identified exit to Deep Caves 9365 | -7/Zion | Discovered exit to Deep Caves (range 3) 9365 | -7/Zion | Saw the warning signs outside the Deep Caves entrance 9432 | -7/Zion | Build established: Bothacker-Gunner 9505 | -7/Zion | Destroyed Imprinter 9515 | -7/Zion | Extracted access codes from Imprinter's data core 9594 | -7/Zion | Entered Deep Caves 9671 | -7/Deep Caves | Z-Facility disabled 9723 | -7/Deep Caves | Destroyed by VG-N7P(z) with Zionite Laser-S Last Messages --------------- 09619_ as-17304 destroyed. 09626_ Used Protomatter to restore core integrity (+30, depleted) 09627_ Used Protomatter to restore core integrity (+24, depleted) 09671_ Z-Facility disabled. 09672_ Prototype Hover Unit melted. 09672_ 0V-8U3(z) destroyed. 09672_ Switching to secondary target: 0I-HXK(z). 09676_ Destroyed Prototype Hover Unit. 09680_ Prototype Reactor melted. 09680_ Imp. Maneuvering Thrusters melted. 09680_ Prototype Storage melted. 09680_ 0I-HXK(z) destroyed. 09687_ Imp. Maneuvering Thrusters melted. 09687_ P0-PPL(z) destroyed. 09699_ Used Protomatter to restore core integrity (+135, depleted) 09718_ Melted Prototype Protection. 09718_ HZ-48M(z) overheating. 09719_ HZ-48M(z) critical meltdown. 09719_ Prototype Device melted. 09723_ Gatling Laser destroyed. Map ----- +----------------------------------------------------+ | | | | | | | | | | | | | | | | | | | | | | | ????????????????????????????????#????????????????? | | ????????????????????????????????[????????????????? | | ??????????????????????????????? *???### ????????? | | ?????????????#????????????????? !??# ???????? | | ????????????## ##?????#######?? #?# ??????? | | ??????????###zzz ######%zz# ##? ## ?????? | | ??????????# # ## ????? | | ??????????# ??? | | ???????????? ??? | | ?????????????# ????? | | ?????????????## ???????? | | ?????????????# """"????????"" | | ?????????????# """"????????"" | | ?????????## # """"??????"""" | | ?????????# @ """"??????"""" | | ????????????# """""?????" | | ????????????## """""??????""" | | ????????????## """""???"""""" | | ????????????# """""??""""""" | | ????????????## """"""?""""""" | | ?????????????# """"""""" " " | | ??????????? # """"""""" | | ?????????? """""""" | | ?????????? """""?""" | | ?????????# """""?""" | | ??????????# """"""""""" | | ??????????### """"""""""""" | | ????????????# """""" | | ????????????## """""" """ | | ?????????????# """""" """"" | | ?????????????## """""" """"""" | | ??????????????# """"" """"""" | | ??????????????# """" """"""" | | ??????????? # """" """"" | | ?????????? """" """ | | ?????????? """" | | ?????????? """""""""" | | ?????????? """"""" | | ?????????? | +----------------------------------------------------+ Best States ------------- Heat Dissipation 85 Energy Generation 33 Energy Capacity 900 Matter Stores 300 Matter Capacity 300 Sight Range 20 Terrain Scan Density 10 Armor Coverage 150 Resistance: KI 35 Resistance: TH 35 Resistance: EX 35 Resistance: EM 35 Resistance: I 35 Resistance: S 35 Resistance: P 35 Evasion (%) 62 Offensive Hacking 30 Defensive Hacking 10 Relay Coupler Types 4 Relay Coupler Value 332 Item Schematics ----------------- Hvy. Missile Launcher | -7/Zion | Archive Adv. Signal Interpreter | -7/Zion | Archive Lyr. Medium Armor Plating | -7/Zion | Archive Mak. Axe | -7/Zion | Archive Adv. Terrain Scanner | -7/Zion | Archive Proton Missile Launcher | -7/Zion | Archive Imp. Remote Datajack | -7/Zion | Archive KE Penetrator | -7/Zion | Archive Arc Projector | -7/Zion | Archive EM Shield | -7/Zion | Archive Flak Gun | -7/Zion | Archive Enh. Optical Array | -7/Zion | Archive Imp. Field Recycling Unit | -7/Zion | Archive Imp. Armor Integrity Analyzer | -7/Zion | Archive Adv. ECM Suite | -7/Zion | Archive Robot Schematics ------------------ C-17 Slicer | -7/Factory | Hacked K-01 Serf | -7/Zion | Archive R-06 Scavenger | -7/Zion | Archive L-31 Rogue | -7/Zion | Archive Fabricated ------------ C-17 Slicer | x3 | -7/Factory C-17 Slicer | x3 | -7/Factory Alien Tech Used ----------------- None Achievements -------------- None Challenges ------------ None RPGLIKE | -11 -10 -10 -9 -9 -9 -8 -8 -8 -8 -7 -7 -7 -7 -7 -7 --------- Run | Scr Mat Min Mat Min Exi Min Mat Gar Mat Fac Gar Fac Low Zio Dee Levels Raised 17 | . . . 3 . 1 . 3 2 1 4 1 1 . 1 . XP Earned 31765 | 6000 180 750 4196 760 350 843 3700 3914 1252 5838 1335 2242 118 120 167 XP Spent 25930 | . . . . 750 10650 . . 4880 2000 7650 . . . . . Upgrades 42 | . . . . 2 12 . . 23 1 4 . . . . . Power Slot 1 | . . . . . 1 . . . . . . . . . . Propulsion Slot 3 | . . . . . 3 . . . . . . . . . . Utility Slot 8 | . . . . 1 4 . . . 1 2 . . . . . Weapon Slot 2 | . . . . . 1 . . 1 . . . . . . . Core Integrity 8 | . . . . . . . . 8 . . . . . . . Heat Dissipation 10 | . . . . . . . . 10 . . . . . . . Inventory Capacity 6 | . . . . 1 3 . . . . 2 . . . . . Ranged Accuracy 4 | . . . . . . . . 4 . . . . . . . Protomatter Created 2454 | . . . . . . . 111 231 109 334 418 993 . 195 63 Integrity Restored 4047 | . . . 102 . . . . 359 141 652 855 1314 . 435 189 Core 3712 | . . . 102 . . . . 271 84 625 855 1151 . 435 189 Parts 335 | . . . . . . . . 88 57 27 . 163 . . . Protomatter Decayed 1451 | . . . . . . . 58 101 60 178 133 871 . 50 . Game ------ Seed ReflectiveScanMicroactuators Manual? 0 Play Time 02:07:37 Cumulative 337.1 hours Start 2021.10.25 @ 12:52:45 End 2021.10.26 @ 02:01:04 Sessions 3 Manual Loads 0 Difficulty Explorer Special Mode Winter2019/RPGLIKE Game No. 99 Rogue 0 Adventurer 0 Explorer 99 Win Type - Total 26 Types 15/3/1/1/1/2/1/2/0 Lore% 71 Gallery% 86 Achievement% 81 Wizard Run 0 Options --------- ASCII 1 Keyboard 0 Movement Vi Keybinds 0 Fullscreen 1 Font 18/X11Bold Map View 76x50 Tactical HUD 1 Map Filters NONE Filters NONE Steam 1 RUN: c0a86bca-6a91-4058-b55a-d5e8eb52233b